fUST/lending_fUST_20250601
["ID","MTS","AMOUNT","RATE_DAILY","PERIOD"]
[363389599,1748716250642,-500.0,0.00019178,2]
[363389600,1748716250653,-377.47319204,0.00019178,2]
[363389601,1748716250663,-500.0,0.00019178,2]
[363389602,1748716250673,-438.87,0.00019178,2]
[363389603,1748716250683,-506.1828402,0.00019178,2]
[363389604,1748716250692,-500.0,0.00019178,2]
[363389605,1748716250702,-500.0,0.00019178,2]
[363389606,1748716250712,-250.0,0.00019178,2]
[363389607,1748716250722,-500.0,0.00019178,2]
[363389608,1748716250731,-500.0,0.00019178,2]
[363389609,1748716250742,-250.0,0.00019178,2]
[363389610,1748716250751,-500.0,0.00019178,2]
[363389611,1748716250761,-500.0,0.00019178,2]
[363389612,1748716250770,-300.0,0.00019178,2]
[363389613,1748716250780,-151.0,0.00019178,2]
[363389614,1748716250789,-151.0,0.00019178,2]
[363389615,1748716250798,-151.0,0.00019178,2]
[363389616,1748716250808,-151.0,0.00019178,2]
[363389617,1748716250817,-484.672087,0.00019178,2]
[363389618,1748716250827,-484.672087,0.00019178,2]
[363389619,1748716250836,-316.81,0.00019178,2]
[363389620,1748716250846,-430.0,0.00019178,2]
[363389621,1748716250856,-430.0,0.00019178,2]
[363389622,1748716250865,-430.0,0.00019178,2]
[363389623,1748716250875,-430.0,0.00019178,2]
[363389624,1748716250884,-430.0,0.00019178,2]
[363389625,1748716250894,-430.0,0.00019178,2]
[363389626,1748716250903,-430.0,0.00019178,2]
[363389627,1748716250913,-430.0,0.00019178,2]
[363389628,1748716250923,-430.0,0.00019178,2]
[363389629,1748716250932,-430.0,0.00019178,2]
[363389630,1748716250941,-430.0,0.00019178,2]
[363389631,1748716250951,-430.0,0.00019178,2]
[363389632,1748716250960,-739.41,0.00019178,2]
[363389633,1748716250970,-954.07,0.00019178,2]
[363389634,1748716250979,-528.659518,0.00019178,2]
[363389635,1748716250988,-528.659518,0.00019178,2]
[363389636,1748716250997,-728.57,0.00019178,2]
[363389637,1748716251006,-1998.85,0.00019178,2]
[363389638,1748716251015,-506.33,0.00019178,2]
[363389639,1748716251025,-844.56,0.00019178,2]
[363389640,1748716251035,-1827.35,0.00019178,2]
[363389641,1748716251044,-449.29,0.00019178,2]
[363389642,1748716251053,-518.71,0.00019178,2]
[363389643,1748716251064,-430.0,0.00019178,2]
[363389644,1748716251073,-2584.7,0.00019178,2]
[363389645,1748716251084,-230.57060574,0.00019178,2]
[363389646,1748716251094,-430.0,0.00019178,2]
[363389647,1748716251104,-564.45,0.00019178,2]
[363389648,1748716251113,-1144.67,0.00019178,2]
[363389649,1748716251123,-151.0,0.00019178,2]
[363389650,1748716251133,-430.0,0.00019178,2]
[363389651,1748716251142,-1561.77,0.00019178,2]
[363389652,1748716251151,-151.0,0.00019178,2]
[363389653,1748716251161,-1168.44,0.00019178,2]
[363389654,1748716251171,-1012.05,0.00019178,2]
[363389655,1748716251182,-1623.94,0.00019178,2]
[363389656,1748716251191,-430.0,0.00019178,2]
[363389657,1748716251201,-574.66,0.00019178,2]
[363389658,1748716251210,-151.0,0.00019178,2]
[363389659,1748716251220,-840.75,0.00019178,2]
[363389660,1748716251229,-430.0,0.00019178,2]
[363389661,1748716251239,-430.0,0.00019178,2]
[363389662,1748716251249,-381.203394,0.00019178,2]
[363389663,1748716251258,-381.203394,0.00019178,2]
[363389664,1748716251269,-430.0,0.00019178,2]
[363389665,1748716251278,-1055.3,0.00019178,2]
[363389666,1748716251288,-430.0,0.00019178,2]
[363389667,1748716251297,-430.0,0.00019178,2]
[363389668,1748716251307,-265.48,0.00019178,2]
[363389669,1748716251316,-197.48,0.00019178,2]
[363389670,1748716251326,-1013.71,0.00019178,2]
[363389671,1748716251335,-430.0,0.00019178,2]
[363389672,1748716251346,-1544.75,0.00019178,2]
[363389673,1748716251356,-500.0,0.00019178,2]
[363389674,1748716251366,-963.38,0.00019178,2]
[363389675,1748716251375,-430.0,0.00019178,2]
[363389676,1748716251385,-430.0,0.00019178,2]
[363389677,1748716251395,-151.0,0.00019178,2]
[363389678,1748716251404,-161.198787,0.00019178,2]
[363389679,1748716251414,-5500.0,0.000192,2]
[363389680,1748716251424,-151.0,0.00019205,2]
[363389681,1748716251433,-500.0,0.00019205,2]
[363389682,1748716251443,-151.0,0.00019233,2]
[363389683,1748716251452,-512.57208481,0.00019233,2]
[363389684,1748716251462,-156.587,0.00019233,2]
[363389685,1748716251472,-202.57043117,0.0001926,2]
[363389686,1748716251481,-162.380719,0.00019288,2]
[363389687,1748716251491,-14454.12192142,0.00019329,2]
[363389688,1748716251500,-311.21881021,0.00019343,2]
[363389689,1748716251510,-1614.56584481,0.00019383,2]
[363389690,1748716251519,-500.0,0.0001945,2]
[363389691,1748716251529,-500.0,0.0001945,2]
[363389692,1748716251539,-438.87,0.00019452,2]
[363389693,1748716251549,-430.0,0.00019452,2]
[363389694,1748716251559,-430.0,0.00019452,2]
[363389695,1748716251568,-739.41,0.00019452,2]
[363389696,1748716251577,-954.07,0.00019452,2]
[363389697,1748716251591,-728.57,0.00019452,2]
[363389698,1748716251601,-1998.85,0.00019452,2]
[363389699,1748716251610,-506.33,0.00019452,2]
[363389700,1748716251620,-844.56,0.00019452,2]
[363389701,1748716251630,-1827.35,0.00019452,2]
[363389702,1748716251640,-449.29,0.00019452,2]
[363389703,1748716251649,-518.71,0.00019452,2]
[363389704,1748716251659,-430.0,0.00019452,2]
[363389705,1748716251670,-2584.7,0.00019452,2]
[363389706,1748716251680,-338.75041047,0.00019452,2]
[363389707,1748716251690,-564.45,0.00019452,2]
[363389708,1748716251700,-1144.67,0.00019452,2]
[363389709,1748716251710,-430.0,0.00019452,2]
[363389710,1748716251719,-1561.77,0.00019452,2]
[363389711,1748716251835,-1168.44,0.00019452,2]
[363389712,1748716251845,-1012.05,0.00019452,2]
[363389713,1748716251855,-1623.94,0.00019452,2]
[363389714,1748716251865,-430.0,0.00019452,2]
[363389715,1748716251875,-574.66,0.00019452,2]
[363389716,1748716251885,-840.75,0.00019452,2]
[363389717,1748716251896,-430.0,0.00019452,2]
[363389718,1748716251907,-430.0,0.00019452,2]
[363389719,1748716251916,-1055.3,0.00019452,2]
[363389720,1748716251926,-430.0,0.00019452,2]
[363389721,1748716251937,-430.0,0.00019452,2]
[363389722,1748716251947,-1013.71,0.00019452,2]
[363389723,1748716251956,-430.0,0.00019452,2]
[363389724,1748716251967,-1544.75,0.00019452,2]
[363389725,1748716251977,-963.38,0.00019452,2]
[363389726,1748716251987,-430.0,0.00019452,2]
[363389727,1748716251997,-279.6512153,0.00019452,2]
[363389728,1748716252006,-500.0,0.0001947,2]
[363389729,1748716252016,-600.0,0.0001947,2]
[363389730,1748716252025,-500.0,0.0001947,2]
[363389731,1748716252035,-587.0,0.0001963,2]
[363389732,1748716252046,-1614.56584481,0.00019659,2]
[363389733,1748716252056,-438.87,0.00019726,2]
[363389734,1748716252065,-430.0,0.00019726,2]
[363389735,1748716252075,-430.0,0.00019726,2]
[363389736,1748716252085,-739.41,0.00019726,2]
[363389737,1748716252095,-954.07,0.00019726,2]
[363389738,1748716252104,-728.57,0.00019726,2]
[363389739,1748716252113,-1998.85,0.00019726,2]
[363389740,1748716252123,-506.33,0.00019726,2]
[363389741,1748716252133,-844.56,0.00019726,2]
[363389742,1748716252143,-1827.35,0.00019726,2]
[363389743,1748716252152,-449.29,0.00019726,2]
[363389744,1748716252162,-518.71,0.00019726,2]
[363389745,1748716252172,-430.0,0.00019726,2]
[363389746,1748716252182,-2584.7,0.00019726,2]
[363389747,1748716252192,-564.45,0.00019726,2]
[363389748,1748716252202,-1144.67,0.00019726,2]
[363389749,1748716252213,-430.0,0.00019726,2]
[363389750,1748716252222,-1561.77,0.00019726,2]
[363389751,1748716252232,-1168.44,0.00019726,2]
[363389752,1748716252243,-1012.05,0.00019726,2]
[363389753,1748716252253,-1623.94,0.00019726,2]
[363389754,1748716252263,-430.0,0.00019726,2]
[363389755,1748716252273,-574.66,0.00019726,2]
[363389756,1748716252283,-840.75,0.00019726,2]
[363389757,1748716252292,-430.0,0.00019726,2]
[363389758,1748716252302,-430.0,0.00019726,2]
[363389759,1748716252312,-1055.3,0.00019726,2]
[363389760,1748716252321,-430.0,0.00019726,2]
[363389761,1748716252332,-430.0,0.00019726,2]
[363389762,1748716252341,-1013.71,0.00019726,2]
[363389763,1748716252352,-430.0,0.00019726,2]
[363389764,1748716252363,-1544.75,0.00019726,2]
[363389765,1748716252372,-963.38,0.00019726,2]
[363389766,1748716252381,-430.0,0.00019726,2]
[363389767,1748716252391,-229.18523208,0.00019726,3]
[363389768,1748716252401,-359.17,0.0001981,2]
[363389769,1748716252410,-180.693,0.0001981,2]
[363389770,1748716252420,-207.4,0.0001983,2]
[363389771,1748716252430,-5000.0,0.0001983,2]
[363389772,1748716252440,-11128.23,0.00019857,2]
[363389773,1748716252450,-500.0,0.00019884,2]
[363389774,1748716252459,-500.0,0.00019884,2]
[363389775,1748716252469,-1614.56584481,0.00019934,2]
[363389776,1748716252479,-900.0,0.00019964,2]
[363389777,1748716252488,-151.0,0.00019964,2]
[363389778,1748716252498,-151.0,0.00019964,2]
[363389779,1748716252507,-151.0,0.00019964,2]
[363389780,1748716252517,-151.0,0.00019964,2]
[363389781,1748716252527,-484.672087,0.00019964,2]
[363389782,1748716252536,-484.672087,0.00019964,2]
[363389783,1748716252546,-528.659518,0.00019964,2]
[363389784,1748716252555,-528.659518,0.00019964,2]
[363389785,1748716252565,-151.0,0.00019964,2]
[363389786,1748716252575,-438.87,0.0002,2]
[363389787,1748716252590,-151.0,0.0002,2]
[363389788,1748716252599,-151.0,0.0002,2]
[363389789,1748716252609,-430.0,0.0002,2]
[363389790,1748716252619,-430.0,0.0002,2]
[363389791,1748716252630,-739.41,0.0002,2]
[363389792,1748716252639,-954.07,0.0002,2]
[363389793,1748716252649,-728.57,0.0002,2]
[363389794,1748716252659,-1998.85,0.0002,2]
[363389795,1748716252668,-506.33,0.0002,2]
[363389796,1748716252678,-844.56,0.0002,2]
[363389797,1748716252687,-151.0,0.0002,2]
[363389798,1748716252697,-245.958198,0.0002,2]
[363389799,1748716252706,-1827.35,0.0002,2]
[363389800,1748716252715,-449.29,0.0002,2]
[363389801,1748716252724,-518.71,0.0002,2]
[363389802,1748716252734,-430.0,0.0002,2]
[363389803,1748716252744,-2584.7,0.0002,2]
[363389804,1748716252753,-564.45,0.0002,2]
[363389805,1748716252762,-1144.67,0.0002,2]
[363389806,1748716252771,-430.0,0.0002,2]
[363389807,1748716252780,-1561.77,0.0002,2]
[363389808,1748716252790,-1168.44,0.0002,2]
[363389809,1748716252799,-1012.05,0.0002,2]
[363389810,1748716252808,-1623.94,0.0002,2]
[363389811,1748716252818,-174.92009233,0.0002,2]
[363389812,1748716252827,-574.66,0.0002,2]
[363389813,1748716252837,-151.0,0.0002,2]
[363389814,1748716252846,-840.75,0.0002,2]
[363389815,1748716252855,-430.0,0.0002,2]
[363389816,1748716252865,-381.203394,0.0002,2]
[363389817,1748716252874,-381.203394,0.0002,2]
[363389818,1748716252883,-430.0,0.0002,2]
[363389819,1748716252893,-1055.3,0.0002,2]
[363389820,1748716252903,-430.0,0.0002,2]
[363389821,1748716252912,-430.0,0.0002,2]
[363389822,1748716252922,-1013.71,0.0002,2]
[363389823,1748716252931,-256.94,0.0002,2]
[363389824,1748716252940,-1544.75,0.0002,2]
[363389825,1748716252950,-963.38,0.0002,2]
[363389826,1748716252959,-430.0,0.0002,2]
[363389827,1748716252969,-1000.0,0.00020018,2]
[363389828,1748716252978,-1200.0,0.00020018,2]
[363389829,1748716252988,-1000.0,0.00020018,2]
[363389830,1748716252998,-533.76350998,0.00020045,2]
[363389831,1748716253007,-500.0,0.000201,2]
[363389832,1748716253017,-176.4540852,0.0002011,2]
[363389833,1748716253027,-153.0,0.0002011,2]
[363389834,1748716253037,-258.8270457,0.0002011,2]
[363389835,1748716253047,-153.0,0.0002011,2]
[363389836,1748716253056,-572.2963003,0.0002011,2]
[363389837,1748716253066,-158.4581234,0.0002011,2]
[363389838,1748716253075,-153.0,0.0002011,2]
[363389839,1748716253085,-176.4540852,0.0002011,2]
[363389840,1748716253095,-572.2963003,0.0002011,2]
[363389841,1748716253106,-153.0,0.0002011,2]
[363389842,1748716253115,-811.321436,0.00020187,2]
[363389843,1748716253125,-324.69,0.0002021,2]
[363389844,1748716253135,-500.0,0.0002021,2]
[363389845,1748716253145,-1614.56584481,0.0002021,2]
[363389846,1748716253155,-438.87,0.00020273,2]
[363389847,1748716253164,-430.0,0.00020273,2]
[363389848,1748716253174,-430.0,0.00020273,2]
[363389849,1748716253184,-739.41,0.00020273,2]
[363389850,1748716253194,-954.07,0.00020273,2]
[363389851,1748716253205,-728.57,0.00020273,2]
[363389852,1748716253215,-1998.85,0.00020273,2]
[363389853,1748716253224,-506.33,0.00020273,2]
[363389854,1748716253235,-844.56,0.00020273,2]
[363389855,1748716253245,-1827.35,0.00020273,2]
[363389856,1748716253256,-449.29,0.00020273,2]
[363389857,1748716253267,-518.71,0.00020273,2]
[363389858,1748716253278,-430.0,0.00020273,2]
[363389859,1748716253289,-2584.7,0.00020273,2]
[363389860,1748716253299,-564.45,0.00020273,2]
[363389861,1748716253309,-1144.67,0.00020273,2]
[363389862,1748716253319,-242.4,0.00020273,2]
[363389863,1748716253329,-1561.77,0.00020273,2]
[363389864,1748716253338,-1168.44,0.00020273,2]
[363389865,1748716253348,-1012.05,0.00020273,2]
[363389866,1748716253358,-1623.94,0.00020273,2]
[363389867,1748716253368,-574.66,0.00020273,2]
[363389868,1748716253378,-840.75,0.00020273,2]
[363389869,1748716253388,-430.0,0.00020273,2]
[363389870,1748716253398,-430.0,0.00020273,2]
[363389871,1748716253408,-1055.3,0.00020273,2]
[363389872,1748716253418,-430.0,0.00020273,2]
[363389873,1748716253427,-430.0,0.00020273,2]
[363389874,1748716253437,-1013.71,0.00020273,2]
[363389875,1748716253447,-1544.75,0.00020273,2]
[363389876,1748716253456,-963.38,0.00020273,2]
[363389877,1748716253466,-160.0,0.00020273,2]
[363389878,1748716253475,-305.57478374,0.00020273,2]
[363389879,1748716253485,-364.3142842,0.00020356,2]
[363389880,1748716253494,-364.3142842,0.00020356,2]
[363389881,1748716253504,-364.3142842,0.00020356,2]
[363389882,1748716253514,-1614.56584481,0.00020486,3]
[363389883,1748716253523,-151.0,0.00020547,2]
[363389884,1748716253533,-151.0,0.00020547,2]
[363389885,1748716253543,-438.87,0.00020547,2]
[363389886,1748716253552,-430.0,0.00020547,2]
[363389887,1748716253562,-430.0,0.00020547,2]
[363389888,1748716253572,-739.41,0.00020547,2]
[363389889,1748716253587,-954.07,0.00020547,2]
[363389890,1748716253598,-728.57,0.00020547,2]
[363389891,1748716253609,-1998.85,0.00020547,2]
[363389892,1748716253618,-506.33,0.00020547,2]
[363389893,1748716253629,-844.56,0.00020547,2]
[363389894,1748716253639,-1827.35,0.00020547,2]
[363389895,1748716253649,-449.29,0.00020547,2]
[363389896,1748716253660,-518.71,0.00020547,2]
[363389897,1748716253669,-430.0,0.00020547,2]
[363389898,1748716253679,-2584.7,0.00020547,2]
[363389899,1748716253688,-564.45,0.00020547,2]
[363389900,1748716253697,-1144.67,0.00020547,2]
[363389901,1748716253707,-1561.77,0.00020547,2]
[363389902,1748716253716,-1168.44,0.00020547,2]
[363389903,1748716253725,-1012.05,0.00020547,2]
[363389904,1748716253735,-1623.94,0.00020547,2]
[363389905,1748716253745,-574.66,0.00020547,2]
[363389906,1748716253754,-840.75,0.00020547,2]
[363389907,1748716253763,-554.40438367,0.00020547,2]
[363389908,1748716253774,-430.0,0.00020547,2]
[363389909,1748716253784,-1055.3,0.00020547,2]
[363389910,1748716253793,-430.0,0.00020547,2]
[363389911,1748716253803,-430.0,0.00020547,2]
[363389912,1748716253812,-1013.71,0.00020547,2]
[363389913,1748716253822,-1544.75,0.00020547,2]
[363389914,1748716253831,-963.38,0.00020547,2]
[363389915,1748716253840,-1500.0,0.00020566,2]
[363389916,1748716253850,-1584.09246953,0.00020566,2]
[363389917,1748716253859,-1500.0,0.00020566,2]
[363389918,1748716253869,-981.297112,0.00020578,3]
[363389919,1748716253879,-71112.24,0.000206,2]
[363389920,1748716253888,-151.0,0.000206,2]
[363389921,1748716253898,-381.203394,0.000206,2]
[363389922,1748716253908,-381.203394,0.000206,2]
[363389923,1748716253918,-1000.0,0.00020648,2]
[363389924,1748716253927,-16692.35,0.0002076,2]
[363389925,1748716253936,-1614.56584481,0.00020762,3]
[363389926,1748716253945,-500.0,0.00020788,2]
[363389927,1748716254053,-151.0,0.00020789,2]
[363389928,1748716254064,-151.0,0.00020789,2]
[363389929,1748716254074,-151.0,0.00020789,2]
[363389930,1748716254084,-438.87,0.00020821,2]
[363389931,1748716254094,-151.0,0.00020821,2]
[363389932,1748716254104,-151.0,0.00020821,2]
[363389933,1748716254114,-151.0,0.00020821,2]
[363389934,1748716254124,-151.87808,0.00020821,2]
[363389935,1748716254134,-484.672087,0.00020821,2]
[363389936,1748716254144,-484.672087,0.00020821,2]
[363389937,1748716254154,-430.0,0.00020821,2]
[363389938,1748716254165,-430.0,0.00020821,2]
[363389939,1748716254175,-739.41,0.00020821,2]
[363389940,1748716254184,-954.07,0.00020821,2]
[363389941,1748716254194,-528.659518,0.00020821,2]
[363389942,1748716254204,-528.659518,0.00020821,2]
[363389943,1748716254214,-728.57,0.00020821,2]
[363389944,1748716254224,-1998.85,0.00020821,2]
[363389945,1748716254234,-506.33,0.00020821,2]
[363389946,1748716254243,-844.56,0.00020821,2]
[363389947,1748716254254,-1827.35,0.00020821,2]
[363389948,1748716254263,-449.29,0.00020821,2]
[363389949,1748716254273,-518.71,0.00020821,2]
[363389950,1748716254284,-430.0,0.00020821,2]
[363389951,1748716254294,-2584.7,0.00020821,2]
[363389952,1748716254303,-564.45,0.00020821,2]
[363389953,1748716254313,-1144.67,0.00020821,2]
[363389954,1748716254323,-1561.77,0.00020821,2]
[363389955,1748716254332,-151.0,0.00020821,2]
[363389956,1748716254341,-1168.44,0.00020821,2]
[363389957,1748716254351,-1012.05,0.00020821,2]
[363389958,1748716254361,-1623.94,0.00020821,2]
[363389959,1748716254372,-574.66,0.00020821,2]
[363389960,1748716254381,-840.75,0.00020821,2]
[363389961,1748716254391,-430.0,0.00020821,2]
[363389962,1748716254401,-1055.3,0.00020821,2]
[363389963,1748716254410,-430.0,0.00020821,2]
[363389964,1748716254420,-430.0,0.00020821,2]
[363389965,1748716254430,-1013.71,0.00020821,2]
[363389966,1748716254439,-1544.75,0.00020821,2]
[363389967,1748716254449,-963.38,0.00020821,2]
[363389968,1748716254458,-151.0,0.000209,4]
[363389969,1748716254467,-500.0,0.00020931,2]
[363389970,1748716254477,-158.4581234,0.00020932,2]
[363389971,1748716254486,-175.4301295,0.00020932,2]
[363389972,1748716254495,-153.0,0.00020932,2]
[363389973,1748716254505,-571.0001629,0.00020932,2]
[363389974,1748716254515,-153.0,0.00020932,2]
[363389975,1748716254525,-153.0,0.00020932,2]
[363389976,1748716254535,-153.0,0.00020932,2]
[363389977,1748716254545,-158.4581234,0.00020932,2]
[363389978,1748716254554,-158.4581234,0.00020932,2]
[363389979,1748716254564,-500.0,0.00020999,2]
[363389980,1748716254574,-500.0,0.00020999,2]
[363389981,1748716254588,-500.0,0.00020999,2]
[363389982,1748716254597,-500.0,0.00020999,2]
[363389983,1748716254607,-404.09564099,0.00020999,2]
[363389984,1748716254617,-485460.3655263,0.00020999,2]
[363389985,1748716254636,-722.883952,0.00020999,2]
[363389986,1748716254648,-5255.01343549,0.00020999,2]
[363389987,1748716254661,-7159.73090664,0.00020999,2]
[363389988,1748716254677,-22286.0183642,0.00020999,2]
[363389989,1748716254689,-2500.8274349,0.00020999,2]
[363389990,1748716254700,-3194.75259197,0.00020999,2]
[363389991,1748716254711,-983.5,0.00020999,2]
[363389992,1748716254787,157.39788139,6.8e-07,2]
[363389993,1748716254806,-377.95666654,0.000189,2]
[363389994,1748716254816,-394.83746969,0.00020999,2]
[363389995,1748716254827,-493.28256153,0.00020999,2]
[363389996,1748716254838,-5142.4,0.00020999,2]
[363389997,1748716254850,-10962.9227454,0.00020999,2]
[363389998,1748716254870,-390.42500682,0.00016338,2]
[363389999,1748716254880,-69060.69598188,0.00020999,2]
[363390000,1748716254890,-5000.0,0.00021,2]
[363390001,1748716254899,-10959.46,0.00021,2]
[363390002,1748716254909,-3000.0,0.00021,2]
[363390003,1748716254919,-151.0,0.00021,2]
[363390004,1748716254929,-227.583401,0.00021,2]
[363390005,1748716254939,-151.0,0.00021,2]
[363390006,1748716254949,-151.0,0.00021,2]
[363390007,1748716254959,-151.0,0.00021,2]
[363390008,1748716254968,-151.0,0.00021,2]
[363390009,1748716254979,-151.0,0.00021,2]
[363390010,1748716254988,-3000.0,0.0002101,2]
[363390011,1748716254998,-178.88639313,0.00021018,4]
[363390012,1748716255008,-3000.0,0.0002102,2]
[363390013,1748716255017,-3000.0,0.0002103,2]
[363390014,1748716255027,-1614.56584481,0.00021038,4]
[363390015,1748716255037,-3000.0,0.0002104,2]
[363390016,1748716255047,-3000.0,0.0002105,2]
[363390017,1748716255057,-2382.04994346,0.0002106,2]
[363390018,1748716255212,-300.0,0.00016437,2]
[363390019,1748716255222,-430.63005543,0.00016438,2]
[363390020,1748716255231,-430.0,0.00016438,2]
[363390021,1748716255241,-430.0,0.00016438,2]
[363390022,1748716255250,-430.0,0.00016438,2]
[363390023,1748716255259,-430.0,0.00016712,2]
[363390024,1748716255269,-287.0,0.00017963,2]
[363390025,1748716255279,-617.95005654,0.0002106,2]
[363390026,1748716255288,-900.0,0.0002106,2]
[363390027,1748716255298,-151.0,0.0002106,2]
[363390028,1748716255308,-151.0,0.0002106,2]
[363390029,1748716255317,-151.0,0.0002106,2]
[363390030,1748716255327,-3000.0,0.0002107,2]
[363390031,1748716255336,-3000.0,0.0002108,2]
[363390032,1748716255346,-3000.0,0.0002109,2]
[363390033,1748716255355,-151.0,0.00021095,2]
[363390034,1748716255365,-151.0,0.00021095,2]
[363390035,1748716255375,-211.797857,0.00021095,2]
[363390036,1748716255385,-438.87,0.00021095,2]
[363390037,1748716255395,-430.0,0.00021095,2]
[363390038,1748716255405,-430.0,0.00021095,2]
[363390039,1748716255415,-739.41,0.00021095,2]
[363390040,1748716255424,-954.07,0.00021095,2]
[363390041,1748716255434,-728.57,0.00021095,2]
[363390042,1748716255444,-1998.85,0.00021095,2]
[363390043,1748716255453,-506.33,0.00021095,2]
[363390044,1748716255463,-844.56,0.00021095,2]
[363390045,1748716255478,-1827.35,0.00021095,2]
[363390046,1748716255488,-449.29,0.00021095,2]
[363390047,1748716255498,-518.71,0.00021095,2]
[363390048,1748716255508,-524.85,0.00021095,2]
[363390049,1748716255518,-543.98218681,0.00021095,2]
[363390050,1748716255531,-2040.71781319,0.00021095,2]
[363390051,1748716255541,-564.45,0.00021095,2]
[363390052,1748716255551,-1144.67,0.00021095,2]
[363390053,1748716255561,-1561.77,0.00021095,2]
[363390054,1748716255572,-1168.44,0.00021095,2]
[363390055,1748716255585,-1012.05,0.00021095,2]
[363390056,1748716255596,-1623.94,0.00021095,2]
[363390057,1748716255606,-574.66,0.00021095,2]
[363390058,1748716255616,-151.0,0.00021095,2]
[363390059,1748716255627,-840.75,0.00021095,2]
[363390060,1748716255636,-381.203394,0.00021095,2]
[363390061,1748716255645,-381.203394,0.00021095,2]
[363390062,1748716255656,-430.0,0.00021095,2]
[363390063,1748716255666,-1055.3,0.00021095,2]
[363390064,1748716255676,-430.0,0.00021095,2]
[363390065,1748716255686,-430.0,0.00021095,2]
[363390066,1748716255695,-1013.71,0.00021095,2]
[363390067,1748716255705,-1544.75,0.00021095,2]
[363390068,1748716255715,-963.38,0.00021095,2]
[363390069,1748716255725,-3000.0,0.000211,2]
[363390070,1748716255735,-500.0,0.000211,2]
[363390071,1748716255744,-3000.0,0.0002111,2]
[363390072,1748716255755,-151.0,0.0002111,2]
[363390073,1748716255766,-151.0,0.0002111,2]
[363390074,1748716255776,-2000.0,0.00021114,2]
[363390075,1748716255786,-2000.0,0.00021114,2]
[363390076,1748716255796,-3000.0,0.0002112,2]
[363390077,1748716255806,-3000.0,0.0002113,2]
[363390078,1748716255815,-3000.0,0.0002114,2]
[363390079,1748716255826,-3000.0,0.0002115,2]
[363390080,1748716255835,-151.0,0.0002115,2]
[363390081,1748716255845,-151.0,0.0002115,2]
[363390082,1748716255855,-151.0,0.0002115,2]
[363390083,1748716255864,-484.672087,0.0002115,2]
[363390084,1748716255874,-484.672087,0.0002115,2]
[363390085,1748716255884,-528.659518,0.0002115,2]
[363390086,1748716255894,-528.659518,0.0002115,2]
[363390087,1748716255903,-151.0,0.0002115,2]
[363390088,1748716255912,-160.0,0.00021158,3]
[363390089,1748716255921,-3000.0,0.0002116,2]
[363390090,1748716255930,-3000.0,0.0002117,2]
[363390091,1748716255939,-776.8203549,0.0002117,2]
[363390092,1748716255948,-500.0,0.00021175,2]
[363390093,1748716255957,-500.0,0.00021175,2]
[363390094,1748716255967,-151.0,0.00021179,2]
[363390095,1748716255975,-151.0,0.00021179,2]
[363390096,1748716255985,-284.952033,0.00021179,2]
[363390097,1748716255994,-3000.0,0.0002118,2]
[363390098,1748716256003,-224.53576733,0.00021181,2]